Workbook

Sheet Macro (hidden)

Sheet fietspaden
B2: Aanvrager | H2: standaard opslag in % | M2: 0.8 | N2: =IF(M2=80%,"","onderbouwing opslagen bijvoegen") -> 
B3: Traject | H3: aanvullende opslagen IV97 t/m 99 | M3: nee | N3: =IF(M3="nee","","onderbouwing opslagen bijvoegen") -> 
B4: km | D4: km | H4: bijzondere kosten IV01 t/m 90 | M4: nee | N4: =IF(M4="nee","","onderbouwing bijvoegen") -> 
B6: I. Verhardingen | F6: 1 | G6: Nieuwbouw/Verbreden | I6: 1 | J6: Renovatie | L6: 1 | M6: Slopen en afwerken | O6: subTOTAAL €
D7: B= | E7: kleurtoeslag nee | F7: EHP [DirK] | G7: L m1 | H7: kosten € | I7: EHP [DirK] | J7: L m1 | K7: kosten € | L7: EHP [DirK] | M7: L m1 | N7: kosten € | O7: =SUM(O8:O34) -> 0
B8: I.11 | C8: tegels (7 cm) | D8: 1.5 | E8: [m] B < 2,00 m | F8: 58.67301111 | H8: =ROUNDUP(+G8*$D8*F$6*IF($E$7="kleurtoeslag ja",$F8+1.5,$F8),-1) -> 0 | I8: 36.87316667 | K8: =ROUNDUP(+J8*$D8*I$6*IF($E$7="kleurtoeslag ja",I$8+1.5,I$8),-1) -> 0 | L8: 18.91011111 | N8: =ROUNDUP(+M8*L8*$D8*L$6,-1) -> 0 | O8: =+N8+K8+H8 -> 0
B9: I.12 | D9: 2.5 | E9: [m] B= 2,00 - 4,00 m | F9: 49.98145556 | H9: =ROUNDUP(+G9*$D9*F$6*IF($E$7="kleurtoeslag ja",$F9+1.5,$F9),-1) -> 0 | I9: 29.17 | K9: =ROUNDUP(+J9*$D9*I$6*IF($E$7="kleurtoeslag ja",I$8+1.5,I$8),-1) -> 0 | L9: 15.38566667 | N9: =ROUNDUP(+M9*L9*$D9*L$6,-1) -> 0 | O9: =+N9+K9+H9 -> 0
B10: I.13 | D10: 1.5 | E10: [m] verbreden | F10: 58.67301111 | H10: 0 | O10: =+N10+K10+H10 -> 0
B11: I.14 | D11: 2.5 | E11: [m] verwijderen tegels | I11: 14.15 | K11: =ROUNDUP(+J11*I11*$D11*I$6,-1) -> 0 | O11: =+N11+K11+H11 -> 0
B13: I.31 | C13: asfalt zwart | D13: 1.5 | E13: [m] B < 2,00 m | F13: 43.94366667 | H13: =ROUNDUP(+G13*F13*$D13*F$6,-1) -> 0 | I13: 27.86 | K13: =ROUNDUP(+J13*I13*$D13*I$6,-1) -> 0 | L13: 16.51805556 | N13: =ROUNDUP(+M13*L13*$D13*L$6,-1) -> 0 | O13: =+N13+K13+H13 -> 0
B14: I.32 | D14: 2.5 | E14: [m] B= 2,00 - 2,99 m | F14: 42.537 | H14: 0 | I14: 27.503 | K14: 0 | L14: 16.51805556 | N14: 0 | O14: 0
B15: I.33 | D15: 3.5 | E15: [m] B= 3,00 - 4,00 m | F15: 39.67057143 | H15: 0 | I15: 25.50571429 | K15: 0 | L15: 16.51805556 | N15: 0 | O15: 0
B16: I.34 | D16: 4.5 | E16: [m] B > 4,00 m | F16: 39.39422222 | H16: 0 | I16: 25.50571429 | K16: 0 | L16: 16.51805556 | N16: 0 | O16: =+N16+K16+H16 -> 0
B17: I.35 | D17: 2 | E17: [m] verbreden | F17: 75.78963889 | H17: 0 | O17: 0
B19: I.41 | C19: asfalt rood | D19: 1.5 | E19: B < 2,00 | F19: 51.79283333 | H19: 0 | I19: 37.3 | K19: =ROUNDUP(+J19*I19*$D19*I$6,-1) -> 0 | L19: 16.51805556 | N19: =ROUNDUP(+M19*L19*$D19*L$6,-1) -> 0 | O19: =+N19+K19+H19 -> 0
B20: I.42 | D20: 2.5 | E20: B= 2,00 - 2,99 | F20: 50.0095 | H20: 0 | I20: 36.4795 | K20: 0 | L20: 16.51805556 | N20: 0 | O20: 0
B21: I.43 | D21: 3.5 | E21: B= 3,00 - 4,00 | F21: 46.33664286 | H21: 0 | I21: 32.74321429 | K21: 0 | L21: 16.51805556 | N21: 0 | O21: 0
B22: I.44 | D22: 4.3 | E22: B > 4,00 | F22: 46.18727778 | H22: 0 | I22: 32.55861111 | K22: 0 | L22: 16.51805556 | N22: 0 | O22: =+N22+K22+H22 -> 0
B23: I.45 | D23: 1.5 | E23: [m] verbreden | F23: 97.06838889 | H23: 0 | O23: 0
B25: onderhoud | D25: 0.15 | E25: van het oppervlak | J25: Onderhoud
D26: B= | F26: EHP [DirK] | I26: EHP [DirK] | J26: L m1 | K26: kosten € | L26: EHP [DirK]
B27: I.51 | C27: klein (/7 jr) | D27: 2.5 | E27: tegels | I27: 32.09180556 | K27: =ROUNDUP(+J27*I27*$D27*I$6,-1) -> 0 | O27: =+N27+K27+H27 -> 0
B28: I.52 | C28: onderhoud | D28: 2.5 | E28: asfalt zwart | I28: 21.559375 | K28: 0 | O28: 0
B29: I.53 | D29: 2.5 | E29: asfalt rood | I29: 31.325 | K29: 0 | O29: 0
B31: I.61 | C31: groot (/14 jr) | D31: 2.5 | E31: tegels | I31: 22.90022222 | K31: =ROUNDUP(+J31*I31*$D31*I$6,-1) -> 0 | O31: =+N31+K31+H31 -> 0
B32: I.62 | C32: onderhoud | D32: 2.5 | E32: asfalt zwart | I32: 14.48916667 | K32: 0 | O32: =+N32+K32+H32 -> 0
B33: I.63 | D33: 2.5 | E33: asfalt rood | I33: 22.30166667 | K33: 0 | O33: 0
H36: B verharding [m] | I36: toeslag EHP | J36: 3 | K36: B berm [m] | M36: 1
B37: II. Grondwerk (excl grondwerk standaard DWP) | G37: Aanbrengen | I37: 0.05 | J37: Verbreding | M37: Verwijderen | O37: subTOTAAL €
B38: incl afwerking | D38: H gemiddeld | F38: EHP m3/m1 | G38: L m1 | H38: kosten € | I38: EHP m3/m1 | J38: L m1 | K38: kosten € | L38: EHP [DirK] | M38: L m1 | N38: kosten € | O38: =SUM(O39:O44) -> 0
B39: II.11 | D39: 0.25 | E39: H=0,00-0,50 | F39: 19.43438889 | H39: =+ROUNDUP(($J$36+2*$M$36+2*$D39)*$D39*G39*F39,-1) -> 0 | I39: 19.43438889 | K39: =+ROUNDUP(($J$36+1*$M$36+2*$D39)*$D39*J39*I39*(1+$I$37),-1) -> 0 | L39: 13.68166667 | N39: =+ROUNDUP(($J$36+2*$M$36+2*$D39)*$D39*M39*L39,-1) -> 0 | O39: =+N39+K39+H39 -> 0
B40: II.12 | D40: 0.75 | E40: H=0,50-1,00 | F40: 13.53508333 | H40: =+ROUNDUP(($J$36+2*$M$36+2*$D40)*$D40*G40*F40,-1) -> 0 | I40: 13.53508333 | K40: =+ROUNDUP(($J$36+1*$M$36+2*$D40)*$D40*J40*I40*(1+$I$37),-1) -> 0 | L40: 23.45 | N40: =+ROUNDUP(($J$36+2*$M$36+2*$D40)*$D40*M40*L40,-1) -> 0 | O40: 0
B41: II.13 | D41: 1.25 | E41: H=1,00-1,50 | F41: 14.28925 | H41: 0 | I41: 14.28925 | K41: 0 | L41: 35.75 | N41: 0 | O41: 0
B42: II.14 | D42: 1.75 | E42: H=1,50-2,00 | F42: 15.34817857 | H42: 0 | I42: 15.34817857 | K42: 0 | L42: 48.05 | N42: 0 | O42: 0
I43: 7.81
B46: III. Voorzieningen | F46: 10 | G46: Aanbrengen | J46: Verplaatsen/aanpassen | M46: Verwijderen | O46: subTOTAAL €
F47: EHP | G47: L m1 | H47: kosten € | I47: EHP | J47: L m1 | K47: kosten € | L47: EHP | M47: L m1 | N47: kosten € | O47: =SUM(O48:O67) -> 0
B48: III.11 | C48: OV langs Fp (HoH 25m) | E48: 4,0m mast LED | F48: =+F54/25 -> 49.2 | H48: =ROUNDUP(+G48*F48*F$6,-1) -> 0 | I48: =+I54/25 -> 14.55 | K48: =ROUNDUP(+J48*I48*I$6,-1) -> 0 | L48: =+L54/25 -> 5.733333333 | N48: =ROUNDUP(+M48*L48*L$6,-1) -> 0 | O48: =+N48+K48+H48 -> 0
B50: III.21 | C50: 220V laagspanning | E50: 4x2,5 grondkabel | F50: 15.75 | H50: =ROUNDUP(+G50*F50*F$6,-1) -> 0 | I50: 12 | K50: =ROUNDUP(+J50*I50*I$6,-1) -> 0 | L50: 10 | N50: =ROUNDUP(+M50*L50*L$6,-1) -> 0 | O50: =+N50+K50+H50 -> 0
B51: III.22 | C51: signaalkabel | E51: glasvezel | F51: 18.9 | H51: 0 | I51: 12 | K51: 0 | L51: 10 | N51: 0 | O51: =+N51+K51+H51 -> 0
F53: EHP | G53: aantal | H53: kosten € | I53: EHP | J53: aantal | K53: kosten € | L53: EHP | M53: aantal | N53: kosten €
B54: III.12 | C54: OV op kruisingsvlakken | E54: 4,0m mast LED | F54: 1230 | H54: =ROUNDUP(+G54*F54*F$6,-1) -> 0 | I54: 363.75 | K54: =ROUNDUP(+J54*I54*I$6,-1) -> 0 | L54: 143.3333333 | N54: =ROUNDUP(+M54*L54*L$6,-1) -> 0 | O54: =+N54+K54+H54 -> 0
B56: III.31 | C56: schakelkast | E56: hardware | F56: 28350 | H56: =ROUNDUP(+G56*F56*F$6,-1) -> 0 | I56: 10000 | K56: =ROUNDUP(+J56*I56*I$6,-1) -> 0 | L56: 5000 | N56: =ROUNDUP(+M56*L56*L$6,-1) -> 0 | O56: =+N56+K56+H56 -> 0
B57: III.32 | C57: VRI programeren | E57: software | F57: 5000 | H57: 0 | I57: 2000 | K57: 0 | O57: =+N57+K57+H57 -> 0
B59: III.41 | C59: VRI fietspad (set) | E59: 2 lantaarns incl drukpaal | F59: 7260 | H59: 0 | I59: =+F59/2 -> 3630 | K59: 0 | L59: 1000 | N59: =ROUNDUP(+M59*L59*L$6,-1) -> 0 | O59: 0
B60: III.42 | C60: met voetpad | E60: 4 lantaarns incl drukpaal | F60: 10360 | H60: 0 | I60: =+F60/2 -> 5180 | K60: 0 | L60: 1500 | N60: 0 | O60: =+N60+K60+H60 -> 0
B61: III.43 | C61: met vluchtheuvel | E61: 3 lantaarns incl drukpaal | F61: 10890 | H61: 0 | I61: 5445 | K61: 0 | L61: 1500 | N61: 0 | O61: =+N61+K61+H61 -> 0
B62: III.44 | C62: met voetpad en vluchtheuvel | E62: 6 lantaarns incl drukpaal | F62: 15540 | H62: 0 | I62: 7770 | K62: 0 | L62: 2000 | N62: 0 | O62: =+N62+K62+H62 -> 0
B64: III.51 | C64: VRI autoweg (set) | E64: 1 rijstrook (mast) | F64: 8200 | H64: 0 | I64: =+F64*0.8 -> 6560 | K64: 0 | L64: 1500 | N64: 0 | O64: 0
B65: III.52 | C65: incl detectielussen | E65: 2 rijstrook (zwenkmast) | F65: 19680 | H65: 0 | I65: =+F65*0.7 -> 13776 | K65: 0 | L65: 2000 | N65: 0 | O65: 0
B66: III.53 | E66: 3 rijstrook (zwenkmast) | F66: 25080 | H66: 0 | I66: =+F66*0.7 -> 17556 | K66: 0 | L66: 2000 | N66: 0 | O66: =+N66+K66+H66 -> 0
C68: Directe kosten I, II en III | H68: =SUM(H8:H67) -> 0 | K68: =SUM(K8:K67) -> 0 | N68: =SUM(N8:N67) -> 0 | O68: =+O47+O38+O26+O7 -> 0
C69: standaard opslagen | H69: =+H68*$M$2 -> 0 | K69: =+K68*$M$2 -> 0 | N69: =+N68*$M$2 -> 0 | O69: =+O68*$M$2 -> 0
C70: INV kst I, II, III normbedragen | H70: =+H69+H68 -> 0 | K70: =+K69+K68 -> 0 | N70: =+N69+N68 -> 0 | O70: =+O69+O68 -> 0
B73: V. Specials | D73: bijlage: SSK onderbouwing | G73: Nieuwbouw | J73: Renovatiie | M73: Slopen | O73: subTOTAAL €
G74: ehd | H74: kosten € | I74: EHP | J74: ehd | K74: kosten € | L74: EHP | M74: ehd | N74: kosten € | O74: =SUM(O75:O89) -> 0
B75: V.1 | C75: inspecties & achterstallig onderhoud | H75: 0 | K75: 0 | N75: 0 | O75: =+N75+K75+H75 -> 0
B76: V.2 | C76: grondverbetering, verontreiniging, overig grondwerk | H76: 0 | K76: 0 | N76: 0 | O76: =+N76+K76+H76 -> 0
B77: V.3 | C77: kunstwerken. | H77: 0 | K77: 0 | N77: 0 | O77: 0
B78: V.4 | C78: kabels & leidingen | H78: 0 | K78: 0 | N78: 0 | O78: 0
B79: V.5 | C79: afwatering en riolering | H79: 0 | K79: 0 | N79: 0 | O79: 0
B80: V.6 | C80: overige verhardingen (voetpaden, rijbanen autoverkeer) | H80: 0 | K80: 0 | N80: 0 | O80: =+N80+K80+H80 -> 0
B81: V.7 | C81: bomen en groenvoorzieningen | H81: 0 | K81: 0 | N81: 0 | O81: =+N81+K81+H81 -> 0
B82: V.8 | C82: vastgoed | H82: 0 | K82: 0 | N82: 0 | O82: 0
B83: V.9 | C83: overige posten | H83: 0 | K83: 0 | N83: 0 | O83: 0
B85: V.90 | C85: overige opslagen | H85: 0 | K85: 0 | N85: 0 | O85: 0
B86: V.97 | C86: extra kosten voor NtD | H86: 0 | K86: 0 | N86: 0 | O86: 0
B87: V.98 | C87: bijzondere uitvoeringskosten | H87: 0 | K87: 0 | N87: 0 | O87: =+N87+K87+H87 -> 0
B88: V.99 | C88: bijzondere risico's | H88: 0 | K88: 0 | N88: 0 | O88: 0
C90: INV kst IV specials | H90: =SUM(H75:H89) -> 0 | K90: =SUM(K75:K89) -> 0 | N90: =SUM(N75:N89) -> 0 | O90: =SUM(O75:O89) -> 0
C92: Totale INVESTERING kosten excl BTW (brom) fietspaden | H92: =+H90+H70 -> 0 | K92: =+K90+K70 -> 0 | N92: =+N90+N70 -> 0 | O92: =+O90+O70 -> 0

Sheet haltes
B2: Aanvrager | D2: [gemeente xxx] | H2: standaard opslag in % | M2: 0.8 | N2: =IF(M2=80%,"","onderbouwing opslagen bijvoegen") -> 
B3: Traject | D3: [ xxx ] | H3: aanvullende opslagen IV97 t/m 99 | M3: nee | N3: =IF(M3="nee","","onderbouwing opslagen bijvoegen") -> 
D4: 1 haltepaar | H4: bijzondere kosten IV01 t/m 90 | M4: nee | N4: =IF(M4="nee","","onderbouwing bijvoegen") -> 
A7: I | B7: I. Haltes | F7: 1 | G7: Nieuwbouw | I7: =+F7 -> 1 | J7: Renovatie | L7: =+F7 -> 1 | M7: Slopen en afvoeren | O7: subTOTAAL €
F8: EHP/st [DirK] | G8: Aantal | H8: kosten € | I8: EHP [DirK] | K8: kosten € | L8: EHP [DirK] | M8: L m1 | N8: kosten € | O8: =SUM(O9:O25) -> 0
B9: I.11 | C9: haltekom per halte | E9: asfalt | F9: 7865.959431 | H9: =ROUNDUP(+G9*F9*F$7,-1) -> 0 | O9: =+N9+K9+H9 -> 0
B10: I.12 | E10: beton | F10: 11209.66356 | H10: =ROUNDUP(+G10*F10*F$7,-1) -> 0 | O10: =+N10+K10+H10 -> 0
B11: I.13 | C11: perron per halte | E11: prefab | F11: 27468.80998 | H11: 0 | O11: =+N11+K11+H11 -> 0
B12: I.14 | O12: =+N12+K12+H12 -> 0
B14: I.31 | C14: abri per halte | E14: lengte 6,00 m | F14: 22500 | H14: 0 | O14: =+N14+K14+H14 -> 0
B15: I.32 | E15: lengte 9,00 m | F15: =+F14*1.5 -> 33750 | H15: 0 | O15: 0
B16: I.33 | E16: lengte 12,00 m | F16: =+F14*2 -> 45000 | H16: 0 | O16: 0
B17: I.34 | O17: 0
B18: I.35 | C18: DRIS per halte | F18: 15000 | H18: 0 | O18: 0
B20: I.41 | C20: haltemeubilair | E20: hekwerk per 6 m1 | F20: 1000 | H20: 0 | O20: =+N20+K20+H20 -> 0
B21: I.42 | E21: bank | F21: 2500 | H21: 0 | O21: 0
B22: I.43 | E22: leunsteun | F22: 1500 | H22: 0 | O22: 0
B23: I.44 | E23: afvalbak | F23: 1000 | H23: 0 | O23: 0
B24: I.45 | E24: peukenzuil | F24: 800 | H24: 0 | O24: 0
A28: II | B28: II. Fietsenstalling | G28: Aanbrengen | J28: Verplaatsen | M28: Verwijderen | O28: subTOTAAL €
F29: EHP/st [DK] | G29: L m1 | H29: kosten € | I29: EHP [DirK] | J29: L m1 | K29: kosten € | L29: EHP [DirK] | M29: L m1 | N29: kosten € | O29: =SUM(O30:O35) -> 0
B30: II.11 | E30: fietsbeugel (8 fietsen) | F30: 1600 | H30: =ROUNDUP(+G30*F30*F$7,-1) -> 0 | O30: =+N30+K30+H30 -> 0
B31: II.12 | E31: overkapping | F31: 10000 | H31: 0 | O31: 0
B32: II.13 | H32: =+($J$27+2*$M$27+2*$D32)*$D32*G32*F32 -> 0 | O32: 0
B33: II.14 | H33: =+($J$27+2*$M$27+2*$D33)*$D33*G33*F33 -> 0 | O33: 0
I34: 7.81
A37: III | B37: III. Voorbereidend werk | G37: Aanbrengen | J37: Verplaatsen | M37: Verwijderen | O37: subTOTAAL €
F38: EHP [DK] | G38: L m1 | H38: kosten € | I38: EHP | J38: L m1 | K38: kosten € | L38: EHP | M38: L m1 | N38: kosten € | O38: =SUM(O39:O50) -> 0
H39: =ROUNDUP(+G39*F39*F$7,-1) -> 0 | K39: =ROUNDUP(+J39*I39*I$7,-1) -> 0 | N39: =ROUNDUP(+M39*L39*L$7,-1) -> 0 | O39: =+N39+K39+H39 -> 0
B40: III.11 | C40: 220V laagspanning | E40: 4x2,5 grondkabel | F40: 15.75 | H40: 0 | I40: 12 | K40: 0 | L40: 10 | N40: 0 | O40: 0
B41: III.12 | C41: signaalkabel | E41: glasvezel | F41: 18.9 | H41: 0 | I41: 12 | K41: 0 | L41: 10 | N41: 0 | O41: 0
F42: EHP | G42: LS | H42: kosten € | I42: EHP | J42: LS | K42: kosten € | L42: EHP | M42: LS | N42: kosten €
B43: III.20 | C43: grondwerk per halte | F43: 3000 | H43: 0 | O43: =+N43+K43+H43 -> 0
B45: III.31 | C45: abri's en meubilair | E45: naar depot | I45: 1500 | K45: =ROUNDUP(+J45*I45*I$7,-1) -> 0 | O45: =+N45+K45+H45 -> 0
C46: per halte | E46: opslag en transport
B48: III.41 | C48: verharding en banden | E48: slopen en afvoer | L48: 5000 | N48: =ROUNDUP(+M48*L48*L$7,-1) -> 0 | O48: =+N48+K48+H48 -> 0
C49: per halte
C51: Directe kosten I, II en III | H51: =SUM(H9:H50) -> 0 | K51: =SUM(K9:K50) -> 0 | N51: =SUM(N9:N50) -> 0 | O51: =+O38+O29+O8 -> 0
C52: standaard opslagen | H52: =+H51*$M$2 -> 0 | K52: =+K51*$M$2 -> 0 | N52: =+N51*$M$2 -> 0 | O52: =+O51*$M$2 -> 0
C53: INV kst I, II, III normbedragen | H53: =+H52+H51 -> 0 | K53: =+K52+K51 -> 0 | N53: =+N52+N51 -> 0 | O53: =+O52+O51 -> 0
A56: IV | B56: V. Specials | D56: bijlage: SSK onderbouwing | G56: Nieuwbouw | J56: Renovatiie | M56: Slopen | O56: subTOTAAL €
G57: ehd | H57: kosten € | I57: EHP | J57: ehd | K57: kosten € | L57: EHP | M57: ehd | N57: kosten € | O57: =SUM(O58:O72) -> 0
B58: V.1 | C58: inspecties & achterstallig onderhoud | H58: 0 | K58: 0 | N58: 0 | O58: =+N58+K58+H58 -> 0
B59: V.2 | C59: grondverbetering, verontreiniging, overig grondwerk | H59: 0 | K59: 0 | N59: 0 | O59: 0
B60: V.3 | C60: kunstwerken | H60: 0 | K60: 0 | N60: 0 | O60: 0
B61: V.4 | C61: kabels & leidingen | H61: 0 | K61: 0 | N61: 0 | O61: 0
B62: V.5 | C62: afwatering en riolering | H62: 0 | K62: 0 | N62: 0 | O62: 0
B63: V.6 | C63: overige verhardingen (voetpaden, rijbanen autoverkeer) | H63: 0 | K63: 0 | N63: 0 | O63: 0
B64: V.7 | C64: bomen en groenvoorzieningen | H64: 0 | K64: 0 | N64: 0 | O64: =+N64+K64+H64 -> 0
B65: V.8 | C65: xx | H65: 0 | K65: 0 | N65: 0 | O65: 0
B66: V.9 | C66: overige posten | H66: 0 | K66: 0 | N66: 0 | O66: 0
B68: V.90 | C68: overige posten | H68: 0 | K68: 0 | N68: 0 | O68: 0
B69: V.97 | C69: extra kosten voor NtD | H69: 0 | K69: 0 | N69: 0 | O69: 0
B70: V.98 | C70: bijzondere uitvoeringskosten | H70: 0 | K70: 0 | N70: 0 | O70: 0
B71: V.99 | C71: bijzondere risico's | H71: 0 | K71: 0 | N71: 0 | O71: 0
C73: INV kst IV specials | H73: =SUM(H58:H72) -> 0 | K73: =SUM(K58:K72) -> 0 | N73: =SUM(N58:N72) -> 0 | O73: =SUM(O58:O72) -> 0
C75: Totale INVESTERING kosten excl BTW haltes | H75: =+H73+H53 -> 0 | K75: =+K73+K53 -> 0 | N75: =+N73+N53 -> 0 | O75: =+O73+O53 -> 0

Sheet duurzaam veilig
B2: Aanvrager | E2: [xxxx] | H2: standaard opslag in % | M2: 0.8 | N2: =IF(M2=80%,"","onderbouwing opslagen bijvoegen") -> 
B3: Traject | E3: [xxxx] | H3: aanvullende opslagen IV97 t/m 99 | M3: nee | N3: =IF(M3="nee","","onderbouwing opslagen bijvoegen") -> 
B4: km | D4: km | H4: bijzondere kosten IV01 t/m 90 | M4: nee | N4: =IF(M4="nee","","onderbouwing bijvoegen") -> 
A6: I | B6: I. Drempels | F6: 1 | G6: Aanbrengen | I6: =+F6 -> 1 | J6: Renovatie | L6: =+F6 -> 1 | M6: Verwijderen | O6: subTOTAAL €
D7: B weg= | F7: EHP/m1 [DirK] | G7: aantal | H7: kosten € | I7: EHP [DirK] | J7: L m1 | K7: kosten € | L7: EHP [DirK] | M7: L m1 | N7: kosten € | O7: =SUM(O8:O30) -> 0
B8: I.11 | C8: elementverharding | D8: 7 | E8: 30 km/u [ 7,50 m] | F8: 669.25875 | H8: =ROUNDUP(+G8*F8*$D8*F$6,-1) -> 0 | O8: =+N8+K8+H8 -> 0
B9: I.12 | D9: 7 | E9: 50 km/u [10,80 m] | F9: 940.8754571 | H9: 0 | O9: =+N9+K9+H9 -> 0
B10: I.13 | D10: 10 | E10: 70 km/u [15,00 m] | F10: 1074.0875 | H10: 0 | O10: =+N10+K10+H10 -> 0
B12: I.21 | C12: asfalt | D12: 7 | E12: 30 km/u [ 7,50 m] | F12: 909.00625 | H12: 0 | O12: =+N12+K12+H12 -> 0
B13: I.22 | D13: 7 | E13: 50 km/u [10,80 m] | F13: 1120.397571 | H13: 0 | O13: =+N13+K13+H13 -> 0
B14: I.23 | D14: 10 | E14: 70 km/u [15,00 m] | F14: 1199.0825 | H14: 0 | O14: =+N14+K14+H14 -> 0
B16: I.31 | C16: prefab | D16: 7 | E16: 30 km/u [ 7,50 m] | F16: 1035.743464 | H16: 0 | O16: =+N16+K16+H16 -> 0
B17: I.32 | D17: 7 | E17: 50 km/u [10,80 m] | F17: 1303.5756 | H17: 0 | O17: 0
B18: I.33 | D18: 10 | E18: 70 km/u [15,00 m] | F18: 1478.4855 | H18: 0 | O18: 0
B21: onderhoud | D21: 0.15 | E21: van het oppervlak | J21: Onderhoud
D22: B= | F22: EHP [DirK] | I22: EHP [DirK] | J22: L m1 | K22: kosten € | L22: EHP [DirK]
B23: I.51 | C23: klein (/7 jr) | D23: 2.5 | E23: tegels | K23: =+J23*I23*$D23*I$6*$D$21 -> 0 | O23: =+N23+K23+H23 -> 0
B24: I.53 | C24: onderhoud | D24: 2.5 | E24: asfalt zwart | K24: =+J24*I24*$D24*I$6*$D$21 -> 0 | O24: 0
B25: I.54 | D25: 2.5 | E25: asfalt rood | K25: =+J25*I25*$D25*I$6*$D$21 -> 0 | O25: 0
B27: I.61 | C27: groot (/14 jr) | D27: 2.5 | E27: tegels | K27: =+J27*I27*$D27*I$6 -> 0 | O27: =+N27+K27+H27 -> 0
B28: I.63 | C28: onderhoud | D28: 2.5 | E28: asfalt zwart | K28: =+J28*I28*$D28*I$6 -> 0 | O28: 0
B29: I.64 | D29: 2.5 | E29: asfalt rood | K29: =+J29*I29*$D29*I$6 -> 0 | O29: 0
H31: B verharding [m] | J31: 0 | K31: B berm [m] | M31: 0
A32: II | B32: II. Kruisingsvlakken | F32: =AVERAGE(F12:F14)/AVERAGE(F8:F10) -> 1.202764404 | G32: Aanbrengen | J32: Renovatie | M32: Verwijderen | O32: subTOTAAL €
E33: elementverharding | F33: EHP/m2 [DK] | G33: A m2 | H33: kosten € | I33: EHP [DirK] | J33: A m2 | K33: kosten € | L33: EHP [DirK] | M33: A m2 | N33: kosten € | O33: =SUM(O34:O42) -> 0
B34: II.11 | C34: < 100 m2 | E34: 2 takken | F34: 114.0266862 | H34: =ROUNDUP(+G34*F$6*IF($E$33="asfalt",$F34*$F$32,$F34),-1) -> 0 | O34: =+N34+K34+H34 -> 0
B35: II.12 | C35: 30 km/uur | E35: 3 takken | F35: 110.0952255 | H35: =ROUNDUP(+G35*F$6*IF($E$33="asfalt",$F35*$F$32,$F35),-1) -> 0 | O35: 0
B36: II.13 | E36: 4 takken | F36: 108.5058278 | H36: 0 | O36: =+N36+K36+H36 -> 0
B38: II.21 | C38: 100 - 400 m2 | E38: 2 takken | F38: 97.53251312 | H38: 0 | O38: 0
B39: II.22 | C39: 50 km/uur | E39: 3 takken | F39: 93.33121657 | H39: 0 | O39: =+N39+K39+H39 -> 0
B40: II.23 | E40: 4 takken | F40: 86.63857725 | H40: 0 | O40: 0
I41: 7.81
A43: III | B43: III. Versmalingen | G43: Aanbrengen | J43: Renovatie | M43: Verwijderen | O43: subTOTAAL €
D44: B weg= | E44: elementverharding | F44: EHP/m2 [DK] | G44: aantal | H44: kosten € | I44: EHP | J44: L m1 | K44: kosten € | L44: EHP | M44: L m1 | N44: kosten € | O44: =SUM(O45:O61) -> 0
B45: III.11 | D45: 5 | E45: visuele versmalling | F45: 85.49931818 | H45: =ROUNDUP(+G45*$D45*F$6*IF($E$44="asfalt",$F45*$F$32,$F45),-1) -> 0 | O45: =+N45+K45+H45 -> 0
B46: III.12 | D46: 5 | E46: met fietsstroken | F46: 658.3333333 | H46: =ROUNDUP(+G46*$D46*F$6*IF($E$44="asfalt",$F46*$F$32,$F46),-1) -> 0 | O46: 0
B47: III.13 | D47: 5 | E47: met uitstulpingen | F47: 460 | H47: 0 | O47: 0
F49: EHP | G49: aantal | H49: kosten € | I49: EHP | J49: aantal | K49: kosten € | L49: EHP | M49: aantal | N49: kosten €
B50: III.12 | C50: OV op kruisingsvlakken | E50: 4,0m mast LED | F50: 1130 | H50: =+G50*F50 -> 0 | I50: 365 | K50: =+J50*I50 -> 0 | L50: 150 | N50: =+M50*L50 -> 0 | O50: =+N50+K50+H50 -> 0
B52: III.31 | C52: schakelkast | E52: hardware | F52: 30000 | H52: =+G52*F52 -> 0 | I52: 10000 | K52: =+J52*I52 -> 0 | L52: 5000 | N52: =+M52*L52 -> 0 | O52: =+N52+K52+H52 -> 0
B53: III.32 | C53: VRI programeren | E53: software | F53: 5000 | H53: 0 | O53: 0
B54: III.41 | C54: VRI fietspad (set) | E54: 2 lantaarns incl drukpaal | F54: 6811 | H54: 0 | I54: =+F54/2 -> 3405.5 | K54: =+J54*I54 -> 0 | L54: 1000 | N54: =+M54*L54 -> 0 | O54: 0
B55: III.42 | C55: met voetpad | E55: 4 lantaarns incl drukpaal | F55: 9610 | H55: 0 | I55: =+F55/2 -> 4805 | K55: 0 | L55: 1500 | N55: =+M55*L55 -> 0 | O55: =+N55+K55+H55 -> 0
B56: III.43 | C56: met vluchtheuvel | E56: 3 lantaarns incl drukpaal | F56: 10216 | H56: 0 | I56: 5108 | K56: 0 | L56: 1500 | N56: =+M56*L56 -> 0 | O56: =+N56+K56+H56 -> 0
B57: III.44 | C57: met voetpad en vluchtheuvel | E57: 6 lantaarns incl drukpaal | F57: 14415 | H57: 0 | I57: 7207.5 | K57: 0 | L57: 2000 | N57: =+M57*L57 -> 0 | O57: =+N57+K57+H57 -> 0
B58: III.51 | C58: VRI autoweg (set) | E58: 1 rijstrook (mast) | F58: 7351 | H58: 0 | I58: =+F58*0.8 -> 5880.8 | K58: 0 | L58: 1500 | N58: =+M58*L58 -> 0 | O58: 0
B59: III.52 | C59: incl detectielussen | E59: 2 rijstrook (zwenkmast) | F59: 18072 | H59: 0 | I59: =+F59*0.8 -> 14457.6 | K59: 0 | L59: 2000 | N59: 0 | O59: 0
B60: III.xx | E60: 3 rijstrook (zwenkmast) | F60: 22672 | H60: 0 | I60: 18137.6 | K60: 0 | L60: 2000 | N60: 0 | O60: 0
A62: IV | B62: IV. Voorzieningen | G62: Aanbrengen | J62: Verplaatsen | M62: Verwijderen | O62: subTOTAAL €
F63: EHP | G63: L m1 | H63: kosten € | I63: EHP | J63: L m1 | K63: kosten € | L63: EHP | M63: L m1 | N63: kosten € | O63: =SUM(O64:O79) -> 0
B64: III.21 | C64: 220V laagspanning | E64: 4x2,5 grondkabel | F64: =+fietspaden!F50 -> 15.75 | H64: =ROUNDUP(+G64*F64*F$6,-1) -> 0 | I64: =+fietspaden!I50 -> 12 | K64: =ROUNDUP(+J64*I64*I$6,-1) -> 0 | L64: =+fietspaden!L50 -> 10 | N64: =ROUNDUP(+M64*L64*L$6,-1) -> 0 | O64: =+N64+K64+H64 -> 0
B65: III.22 | C65: signaalkabel | E65: glasvezel | F65: =+fietspaden!F51 -> 18.9 | H65: 0 | I65: =+fietspaden!I51 -> 12 | K65: 0 | L65: =+fietspaden!L51 -> 10 | N65: 0 | O65: 0
F67: EHP | G67: aantal | H67: kosten € | I67: EHP | J67: aantal | K67: kosten € | L67: EHP | M67: aantal | N67: kosten €
B68: III.31 | C68: schakelkast | E68: hardware | F68: =+fietspaden!F56 -> 28350 | H68: 0 | I68: =+fietspaden!I56 -> 10000 | K68: =ROUNDUP(+J68*I68*I$6,-1) -> 0 | L68: =+fietspaden!L56 -> 5000 | N68: =ROUNDUP(+M68*L68*L$6,-1) -> 0 | O68: =+N68+K68+H68 -> 0
B69: III.32 | C69: VRI programeren | E69: software | F69: =+fietspaden!F57 -> 5000 | H69: 0 | I69: =+fietspaden!I57 -> 2000 | K69: 0 | O69: 0
B71: III.41 | C71: VRI fietspad (set) | E71: 2 lantaarns incl drukpaal | F71: =+fietspaden!F59 -> 7260 | H71: 0 | I71: =+fietspaden!I59 -> 3630 | K71: 0 | L71: =+fietspaden!L59 -> 1000 | N71: =ROUNDUP(+M71*L71*L$6,-1) -> 0 | O71: =+N71+K71+H71 -> 0
B72: III.42 | C72: met voetpad | E72: 4 lantaarns incl drukpaal | F72: =+fietspaden!F60 -> 10360 | H72: 0 | I72: =+fietspaden!I60 -> 5180 | K72: 0 | L72: =+fietspaden!L60 -> 1500 | N72: 0 | O72: =+N72+K72+H72 -> 0
B73: III.43 | C73: met vluchtheuvel | E73: 3 lantaarns incl drukpaal | F73: =+fietspaden!F61 -> 10890 | H73: 0 | I73: =+fietspaden!I61 -> 5445 | K73: 0 | L73: =+fietspaden!L61 -> 1500 | N73: 0 | O73: =+N73+K73+H73 -> 0
B74: III.44 | C74: met voetpad en vluchtheuvel | E74: 6 lantaarns incl drukpaal | F74: =+fietspaden!F62 -> 15540 | H74: 0 | I74: =+fietspaden!I62 -> 7770 | K74: 0 | L74: =+fietspaden!L62 -> 2000 | N74: 0 | O74: =+N74+K74+H74 -> 0
B76: III.51 | C76: VRI autoweg (set) | E76: 1 rijstrook (mast) | F76: =+fietspaden!F64 -> 8200 | H76: 0 | I76: =+fietspaden!I64 -> 6560 | K76: 0 | L76: =+fietspaden!L64 -> 1500 | N76: 0 | O76: 0
B77: III.52 | C77: incl detectielussen | E77: 2 rijstrook (zwenkmast) | F77: =+fietspaden!F65 -> 19680 | H77: 0 | I77: =+fietspaden!I65 -> 13776 | K77: 0 | L77: =+fietspaden!L65 -> 2000 | N77: 0 | O77: 0
B78: III.53 | E78: 3 rijstrook (zwenkmast) | F78: =+fietspaden!F66 -> 25080 | H78: 0 | I78: =+fietspaden!I66 -> 17556 | K78: 0 | L78: =+fietspaden!L66 -> 2000 | N78: 0 | O78: 0
C80: Directe kosten I, II en III | H80: =SUM(H8:H79) -> 0 | K80: =SUM(K8:K79) -> 0 | N80: =SUM(N8:N79) -> 0 | O80: =+O44+O33+O22+O7 -> 0
C81: standaard opslagen | H81: =+H80*$M$2 -> 0 | K81: =+K80*$M$2 -> 0 | N81: =+N80*$M$2 -> 0 | O81: =+O80*$M$2 -> 0
C82: INV kst I, II, III normbedragen | H82: =+H81+H80 -> 0 | K82: =+K81+K80 -> 0 | N82: =+N81+N80 -> 0 | O82: =+O81+O80 -> 0
A85: V | B85: V. Specials | D85: bijlage: SSK onderbouwing | G85: Nieuwbouw | J85: Renovatiie | M85: Slopen | O85: subTOTAAL €
G86: ehd | H86: kosten € | I86: EHP | J86: ehd | K86: kosten € | L86: EHP | M86: ehd | N86: kosten € | O86: =SUM(O87:O101) -> 0
B87: V.1 | C87: renovatieen aanpassen bestaande voorzieningen | H87: 0 | K87: 0 | N87: 0 | O87: =+N87+K87+H87 -> 0
B88: V.2 | C88: verwijderen bestaande voorzieningen | H88: 0 | K88: 0 | N88: 0 | O88: 0
B89: V.3 | H89: 0 | K89: 0 | N89: 0 | O89: 0
B90: V.4 | C90: bijzonder wegprofiel | H90: 0 | K90: 0 | N90: 0 | O90: 0
B91: V.5 | C91: verleggen kabels & leidingen | H91: 0 | K91: 0 | N91: 0 | O91: 0
B92: V.6 | C92: grote VRI instalaties | H92: 0 | K92: 0 | N92: 0 | O92: 0
B93: V.7 | H93: 0 | K93: 0 | N93: 0 | O93: =+N93+K93+H93 -> 0
B94: V.8 | H94: 0 | K94: 0 | N94: 0 | O94: 0
B95: V.9 | C95: overige posten | H95: 0 | K95: 0 | N95: 0 | O95: 0
B97: V.90 | C97: overige posten | H97: 0 | K97: 0 | N97: 0 | O97: 0
B98: V.97 | C98: extra kosten voor NtD | H98: 0 | K98: 0 | N98: 0 | O98: 0
B99: V.98 | C99: bijzondere uitvoeringskosten | H99: 0 | K99: 0 | N99: 0 | O99: 0
B100: V.99 | C100: bijzondere risico's | H100: 0 | K100: 0 | N100: 0 | O100: 0
C102: INV kst IV specials | H102: =SUM(H87:H101) -> 0 | K102: =SUM(K87:K101) -> 0 | N102: =SUM(N87:N101) -> 0 | O102: =SUM(O87:O101) -> 0
C104: Totale INVESTERING kosten excl BTW snelheidsremmende maatregelen | H104: =+H102+H82 -> 0 | K104: =+K102+K82 -> 0 | N104: =+N102+N82 -> 0 | O104: =+O102+O82 -> 0
